fUSD/lending_fUSD_20250219
["ID","MTS","AMOUNT","RATE_DAILY","PERIOD"]
[353634672,1739973044954,-150.0,0.00013435,2]
[353634673,1739973044963,-150.0,0.00013444,2]
[353634674,1739973044972,-1076.13727419,0.00013448,2]
[353634675,1739973044981,-150.0,0.00013449,2]
[353634676,1739973044991,-150.0,0.00013451,2]
[353634678,1739973045000,-150.0,0.00013454,2]
[353634680,1739973045010,-3286.94707216,0.00013455,2]
[353634682,1739973045019,-150.0,0.00013456,2]
[353634684,1739973045028,-150.0,0.00013456,2]
[353634686,1739973045038,-150.0,0.00013457,2]
[353634688,1739973045048,-150.0,0.00013459,2]
[353634690,1739973045058,-150.0,0.00013459,2]
[353634692,1739973045068,-150.0,0.00013461,2]
[353634694,1739973045078,-414.51317659,0.00013464,2]
[353634696,1739973045087,-150.0,0.00013464,2]
[353634698,1739973045098,-1000.0,0.00013466,2]
[353634700,1739973045108,-13282.18347037,0.00013467,2]
[353634702,1739973045117,-214.24579648,0.00013467,2]
[353634704,1739973045127,-150.0,0.00013469,2]
[353634706,1739973045136,-1000.0,0.00013469,2]
[353634708,1739973045145,-150.0,0.00013471,2]
[353634710,1739973045154,-150.0,0.00013475,2]
[353634712,1739973045164,-150.0,0.00013479,2]
[353634714,1739973045175,-150.0,0.00013485,2]
[353634716,1739973045185,-150.0,0.00013485,2]
[353634718,1739973045197,-150.0,0.00013488,2]
[353634720,1739973045206,-150.0,0.00013489,2]
[353634722,1739973045215,-150.0,0.00013489,2]
[353634724,1739973045225,-3286.94707216,0.00013491,2]
[353634726,1739973045235,-161.85866866,0.00013499,2]
[353634728,1739973045244,-3033.13769979,0.000135,2]
[353634730,1739973045254,-222220.58381032,0.000135,2]
[353634732,1739973045264,-150.0,0.000135,2]
[353634734,1739973045274,-151.714407,0.000135,2]
[353634736,1739973045283,-151.0,0.000135,2]
[353634738,1739973045294,-1000.0,0.000135,2]
[353634740,1739973045303,-150.0,0.00013501,2]
[353634742,1739973045316,-150.0,0.00013504,2]
[353634744,1739973045326,-257.78507185,0.00013511,2]
[353634746,1739973045335,-13282.18347037,0.00013511,2]
[353634748,1739973045344,-150.0,0.00013516,2]
[353634750,1739973045354,-150.0,0.00013521,2]
[353634752,1739973045363,-150.0,0.00013521,2]
[353634754,1739973045373,-150.0,0.00013523,2]
[353634756,1739973045383,-3286.94707216,0.00013527,2]
[353634758,1739973045394,-150.0,0.00013528,2]
[353634760,1739973045403,-122102.50525037,0.0001353,2]
[353634762,1739973045413,-150.0,0.00013531,2]
[353634764,1739973045422,-150.0,0.00013532,2]
[353634766,1739973045433,-150.0,0.00013533,2]
[353634768,1739973045443,-150.0,0.00013538,2]
[353634771,1739973045452,-160.65852685,0.00013539,2]
[353634858,1739973046254,-235.956516,0.000135,2]
[353634860,1739973046264,-30.31727517,0.000135,2]
[353634862,1739973046276,-121.55367183,0.000135,2]
[353634863,1739973046286,-839.34147315,0.00013539,2]
[353634864,1739973046296,-150.0,0.00013539,2]
[353634866,1739973046306,-150.0,0.0001354,2]
[353634868,1739973046319,-150.0,0.00013541,2]
[353634870,1739973046329,-150.0,0.00013541,2]
[353634871,1739973046338,-150.0,0.00013542,2]
[353634872,1739973046348,-150.0,0.00013542,2]
[353634873,1739973046359,-50.61584733,0.00013542,2]
[353634884,1739973322415,1000.0,0.0002,120]
[353634885,1739973324047,1000.0,0.0002,120]
[353634886,1739973324998,1000.0,0.0002,120]
[353634887,1739973325639,1000.0,0.0002,120]
[353634888,1739973326323,1000.0,0.0002,120]
[353634889,1739973327048,1000.0,0.0002,120]
[353634890,1739973327693,1000.0,0.0002,120]
[353634891,1739973328409,1000.0,0.0002,120]
[353634892,1739973332186,1000.0,0.0002,120]
[353634895,1739973772394,1491.68941782,0.0002059,120]
[353634897,1739973824078,152.2,8.767e-05,2]
[353634898,1739973903146,2500.0,0.0002059,120]
[353634899,1739973955136,-269.0,0.00010309,2]
[353634933,1739974232184,-573.38,0.00010309,2]
[353634934,1739974232195,-150.0,0.00012249,2]
[353634935,1739974232205,-421.28,0.00012333,2]
[353634936,1739974232215,-890.34,0.00012357,2]
[353634937,1739974232224,-250.0,0.00012458,2]
[353634938,1739974232234,-493.99,0.0001246,2]
[353634939,1739974232243,-504.9,0.00012461,2]
[353634940,1739974232253,-491.35,0.00012462,2]
[353634941,1739974232262,-492.34,0.00012464,2]
[353634942,1739974232271,-347.7580187,0.00012468,2]
[353634943,1739974232296,-145.6819813,0.00012468,2]
[353634944,1739974232306,-506.32,0.00012472,2]
[353634945,1739974232315,-499.78,0.00012479,2]
[353634946,1739974232325,-1000.0,0.00012479,2]
[353634947,1739974232335,-315.2,0.00012532,2]
[353634948,1739974232344,-505.31,0.00012534,2]
[353634949,1739974232354,-494.64,0.00012536,2]
[353634950,1739974232363,-507.16,0.00012539,2]
[353634951,1739974232372,-508.3,0.00012543,2]
[353634952,1739974232382,-509.9,0.0001255,2]
[353634953,1739974232391,-506.48,0.00012562,2]
[353634954,1739974232400,-65.97830745,0.00012573,2]
[353634955,1739974232418,-776.40169255,0.00012573,2]
[353634956,1739974232427,-494.74,0.0001258,2]
[353634957,1739974232437,-497.04,0.00012614,2]
[353634958,1739974232447,-494.71,0.00012681,2]
[353634959,1739974232457,-775.98,0.000127,2]
[353634960,1739974232466,-227.28,0.000127,2]
[353634961,1739974232476,-506.46,0.00012807,2]
[353634962,1739974232485,-503.81,0.00012878,2]
[353634963,1739974232494,-900.97,0.000129,2]
[353634964,1739974232504,-440.1,0.000129,2]
[353634965,1739974232513,-775.98,0.000129,2]
[353634966,1739974232523,-492.88,0.00012973,2]
[353634967,1739974232534,-550.0,0.00013,2]
[353634968,1739974232543,-986.97,0.00013041,2]
[353634969,1739974232553,-986.97,0.00013041,2]
[353634970,1739974232563,-986.97,0.00013041,2]
[353634971,1739974232572,-986.97,0.00013041,2]
[353634973,1739974232582,-504.01,0.00013093,2]
[353634975,1739974232591,-795.18,0.00013123,2]
[353634977,1739974232601,-864.38529041,0.0001319,2]
[353634979,1739974232611,-1220.7996,0.000132,2]
[353634981,1739974232620,-400.0,0.000132,4]
[353634982,1739974232630,-150.0,0.00013205,2]
[353634984,1739974232640,-150.0,0.00013205,2]
[353634987,1739974232651,-505.2,0.0001325,2]
[353634988,1739974232660,-500.0,0.00013269,2]
[353634990,1739974232670,-500.0,0.00013269,2]
[353634992,1739974232679,-500.0,0.00013269,2]
[353634994,1739974232689,-500.0,0.00013269,2]
[353634996,1739974232699,-604.92,0.00013269,2]
[353634999,1739974232711,-500.0,0.00013269,2]
[353635000,1739974232720,-852.83,0.00013269,2]
[353635002,1739974232729,-706.46,0.00013269,2]
[353635005,1739974232739,-1101.55,0.00013269,2]
[353635007,1739974232750,-500.0,0.00013269,2]
[353635009,1739974232764,-500.0,0.00013269,2]
[353635011,1739974232773,-500.0,0.00013269,2]
[353635013,1739974232783,-983.04,0.00013269,2]
[353635015,1739974232792,-500.0,0.00013269,2]
[353635017,1739974232801,-500.0,0.00013269,2]
[353635019,1739974232812,-500.0,0.00013269,2]
[353635022,1739974232822,-500.0,0.00013269,2]
[353635025,1739974232831,-500.0,0.00013269,2]
[353635028,1739974232841,-500.0,0.00013269,2]
[353635031,1739974232853,-500.0,0.00013269,2]
[353635034,1739974232862,-502.33,0.0001327,2]
[353635037,1739974232872,-1000.0,0.000133,2]
[353635040,1739974232881,-900.0,0.000133,4]
[353635043,1739974232891,-500.0,0.00013352,2]
[353635046,1739974232901,-500.0,0.00013352,2]
[353635049,1739974232910,-500.0,0.00013352,2]
[353635052,1739974232920,-500.0,0.00013352,2]
[353635055,1739974232929,-604.92,0.00013352,2]
[353635058,1739974232938,-500.0,0.00013352,2]
[353635061,1739974232948,-852.83,0.00013352,2]
[353635063,1739974232959,-706.46,0.00013352,2]
[353635065,1739974232969,-1101.55,0.00013352,2]
[353635067,1739974232978,-500.0,0.00013352,2]
[353635069,1739974232988,-500.0,0.00013352,2]
[353635071,1739974232997,-500.0,0.00013352,2]
[353635073,1739974233006,-983.04,0.00013352,2]
[353635075,1739974233016,-500.0,0.00013352,2]
[353635077,1739974233025,-500.0,0.00013352,2]
[353635079,1739974233034,-500.0,0.00013352,2]
[353635081,1739974233044,-500.0,0.00013352,2]
[353635083,1739974233054,-500.0,0.00013352,2]
[353635085,1739974233065,-500.0,0.00013352,2]
[353635086,1739974233075,-500.0,0.00013352,2]
[353635088,1739974233086,-432.31286095,0.00013358,2]
[353635101,1739974233369,-500.0,0.00013369,2]
[353635102,1739974233379,-500.0,0.00013369,2]
[353635103,1739974233389,-500.0,0.00013369,2]
[353635104,1739974233399,-500.0,0.00013369,2]
[353635105,1739974233408,-500.0,0.00013369,2]
[353635106,1739974233418,-500.0,0.00013369,2]
[353635107,1739974233428,-500.0,0.00013369,2]
[353635108,1739974233438,-500.0,0.00013369,2]
[353635109,1739974233448,-500.0,0.00013369,2]
[353635110,1739974233459,-500.0,0.00013369,2]
[353635111,1739974233469,-500.0,0.00013369,2]
[353635112,1739974233479,-500.0,0.00013369,2]
[353635113,1739974233488,-500.0,0.00013369,2]
[353635114,1739974233497,-500.0,0.00013369,2]
[353635115,1739974233507,-414.9065085,0.00013369,2]
[353635362,1739974240577,-628.15,0.00013269,2]
[353635364,1739974240586,-628.15,0.00013352,2]
[353635367,1739974240596,-85.0934915,0.00013369,2]
[353635369,1739974240605,-672.46,0.00013369,2]
[353635370,1739974240615,-500.0,0.00013369,2]
[353635372,1739974240625,-500.0,0.00013369,2]
[353635374,1739974240634,-500.0,0.00013369,2]
[353635376,1739974240644,-500.0,0.00013369,2]
[353635378,1739974240653,-500.0,0.00013369,2]
[353635381,1739974240663,-500.0,0.00013369,2]
[353635383,1739974240672,-500.0,0.00013369,2]
[353635385,1739974240681,-340.23047844,0.00013369,2]
[353635387,1739974240690,-500.0,0.00013369,2]
[353635388,1739974240699,-500.0,0.00013369,2]
[353635390,1739974240709,-500.0,0.00013369,2]
[353635393,1739974240719,-500.0,0.00013369,2]
[353635394,1739974240728,-500.0,0.00013369,2]
[353635396,1739974240738,-500.0,0.00013369,2]
[353635398,1739974240747,-500.0,0.00013369,2]
[353635400,1739974240758,-500.0,0.00013369,2]
[353635403,1739974240770,-500.0,0.00013369,2]
[353635404,1739974240781,-500.0,0.00013369,2]
[353635406,1739974240791,-500.0,0.00013369,2]
[353635408,1739974240800,-500.0,0.00013369,2]
[353635410,1739974240810,-5000.0,0.00013369,2]
[353635412,1739974240819,-688.57,0.00013369,2]
[353635414,1739974240830,-500.0,0.00013369,2]
[353635416,1739974240839,-500.0,0.00013369,2]
[353635418,1739974240849,-500.0,0.00013369,2]
[353635420,1739974240859,-500.0,0.00013369,2]
[353635422,1739974240869,-500.0,0.00013369,2]
[353635424,1739974240878,-643.93407551,0.000134,4]
[353635429,1739974240915,-460.85805502,0.000134,4]
[353635432,1739974240927,-295.20786947,0.000134,4]
[353635434,1739974240937,-416.14063303,0.0001341,2]
[353635436,1739974240948,-269.71215345,0.0001341,2]
[353635439,1739974240966,-288.68262871,0.0001341,2]
[353635444,1739974240997,-1135.96567531,0.0001341,2]
[353635446,1739974241008,-864.80399718,0.0001341,2]
[353635732,1739974244125,-602.66,0.00013369,2]
[353635734,1739974244135,-49.859868,0.0001341,2]
[353636266,1739975092853,500.0,0.000205,120]
[353636268,1739975120659,500.0,0.000205,120]
[353636269,1739975132848,500.0,0.000205,120]
[353636270,1739975143354,500.0,0.000205,120]
[353636271,1739975153288,500.0,0.000205,120]
[353636272,1739975156079,180.23,8.767e-05,2]
[353636274,1739975163554,500.0,0.000205,120]
[353636275,1739975174005,500.0,0.000205,120]
[353636276,1739975187116,500.0,0.000205,120]
[353636277,1739975197477,500.0,0.000205,120]
[353636279,1739975236598,500.0,0.000205,120]
[353636280,1739975247091,500.0,0.000205,120]
[353636281,1739975257313,500.0,0.000205,120]
[353636282,1739975270070,500.0,0.000205,120]
[353636283,1739975280704,450.0,0.000205,120]
[353636371,1739975432682,-758.14,0.00010422,2]
[353636373,1739975432694,-500.0,0.00010711,2]
[353636375,1739975432707,-1300.77930753,0.00011,2]
[353636380,1739975432744,-236.82751232,0.00011,2]
[353636382,1739975432755,-2375.96872768,0.00011,2]
[353636385,1739975432770,-460.82287462,0.00011,2]
[353636387,1739975432781,-300.0,0.00011405,2]
[353636389,1739975432793,-469.51714678,0.00011406,2]
[353636392,1739975432807,-757.8900005,0.00011406,2]
[353636396,1739975432820,-25.09912835,0.00011406,2]
[353636399,1739975432832,-485.57535265,0.00011464,2]
[353636403,1739975432846,-14.42464735,0.00011464,2]
[353636406,1739975432857,-500.0,0.00011464,2]
[353636410,1739975432868,-41.90291265,0.00012228,2]
[353636418,1739975432890,-108.09708735,0.00012228,2]
[353636422,1739975432901,-210.64,0.00012352,2]
[353636426,1739975432913,-21.64291261,0.00012411,2]
[353636433,1739975432927,-228.35708739,0.00012411,2]
[353636437,1739975432938,-246.46408074,0.00012485,2]
[353636581,1739975438593,-46.92591926,0.00012485,2]
[353636583,1739975438603,-495.91,0.00012487,2]
[353636585,1739975438614,-503.55,0.00012488,2]
[353636586,1739975438623,-495.95,0.00012488,2]
[353636587,1739975438632,-505.0,0.0001249,2]
[353636588,1739975438645,-496.51,0.00012494,2]
[353636589,1739975438655,-505.68,0.00012499,2]
[353636590,1739975438665,-499.89,0.00012499,2]
[353636591,1739975438674,-493.46,0.00012507,2]
[353636592,1739975438684,-500.33,0.0001252,2]
[353636594,1739975438695,-499.42,0.0001252,2]
[353636597,1739975438704,-509.34,0.0001252,2]
[353636599,1739975438719,-1000.0,0.0001252,2]
[353636600,1739975438728,-420.0,0.00012528,2]
[353636602,1739975438738,-1932.88809223,0.00012598,2]
[353636604,1739975438747,-758.14,0.00012686,2]
[353636606,1739975438756,-439.11,0.00012778,2]
[353636608,1739975438766,-432.31286095,0.00013071,2]
[353636610,1739975438775,-1000.0,0.000131,2]
[353636612,1739975438784,-530.79956584,0.00013172,2]
[353636614,1739975438794,-864.38529041,0.0001319,2]
[353636616,1739975438803,-644.47839447,0.000132,2]
[353636794,1739975440852,-355.52160553,0.000132,2]
[353636796,1739975440861,-400.0,0.000132,4]
[353636798,1739975440871,-975.54,0.0001326,2]
[353636800,1739975440881,-489.8059045,0.00013269,2]
[353637743,1739976220546,151.42,8.767e-05,2]
[353637754,1739976604571,-785.18,0.00010373,2]
[353637755,1739976604594,-150.0,0.0001223,2]
[353637756,1739976604618,-150.0,0.0001223,2]
[353637757,1739976604640,-154.91934717,0.0001223,2]
[353637758,1739976604666,-150.0,0.00012239,2]
[353637759,1739976604691,-665.71276693,0.00012239,2]
[353637760,1739976604715,-210.64,0.00012376,2]
[353637761,1739976604740,-7733.5478859,0.000124,2]
[353637762,1739976605977,-9137.4021141,0.000124,2]
[353637763,1739976606006,-862.5978859,0.00012404,2]
[353637764,1739976606794,-137.4021141,0.00012404,2]
[353637765,1739976606816,-252.16,0.00012417,2]
[353637766,1739976606838,-785.18,0.00012636,2]
[353637767,1739976606860,-300.0,0.000127,4]
[353637768,1739976606882,-440.22,0.000127,2]
[353637769,1739976606903,-775.98,0.000127,2]
[353637770,1739976606925,-775.98,0.000127,2]
[353637771,1739976606947,-440.22,0.000127,2]
[353637772,1739976606969,-700.0,0.000128,4]
[353637773,1739976606993,-432.31286095,0.00012892,2]
[353637774,1739976607015,-1100.0,0.000129,4]
[353637775,1739976607039,-506.1,0.00012987,2]
[353637776,1739976607060,-550.0,0.00013,2]
[353637777,1739976607081,-1000.0,0.00013,2]
[353637778,1739976607106,-1804.44502495,0.00013013,3]
[353637779,1739976608245,-10000.0,0.00013013,3]
[353637780,1739976608508,-10000.0,0.00013013,3]
[353637781,1739976609271,-10000.0,0.00013013,3]
[353637782,1739976610487,-2651.43469891,0.00013013,3]
[353637783,1739976610511,-150.0,0.00013014,2]
[353637784,1739976610534,-986.71,0.00013014,2]
[353637785,1739976610557,-162.71,0.00013014,2]
[353637786,1739976610582,-2500.0,0.000131,2]
[353637787,1739976610604,-2500.0,0.000131,2]
[353637788,1739976610627,-1049.14530109,0.000131,2]
[353637789,1739976611035,-7457.05139891,0.000131,2]
[353637790,1739976611058,-2542.94860109,0.00013138,2]
[353637791,1739976611811,-423.30634301,0.00013068,2]
[353637792,1739976611834,-2950.88623466,0.00013138,2]
[353637793,1739976611859,-5493.83483568,0.00013189,2]
[353637794,1739976611882,-1072.13,0.000132,2]
[353637795,1739976611905,-59.84258665,0.000132,2]
[353637796,1739976612690,-2440.15741335,0.000132,2]
[353637797,1739976612711,-226.72,0.000132,2]
[353637798,1739976612732,-1459.0,0.000132,2]
[353637799,1739976612756,-5874.12258665,0.000132,2]
[353637800,1739976616089,-775.98,0.000127,2]
[353637801,1739976616112,-440.22,0.000127,2]
[353637802,1739976616134,-5090.0,0.00013151,2]
[353637803,1739976616156,-3693.8,0.000132,2]
[353637804,1739976629278,-2500.0,0.00013138,2]
[353637805,1739976629300,-228.0,0.00013138,2]
[353637823,1739976631533,-271.04,0.00013138,2]
[353637825,1739976631544,-2425.96,0.000132,2]
[353637832,1739976631643,-46145.04091335,0.000132,2]
[353637833,1739976631653,-310.4485116,0.00013215,2]
[353637834,1739976631662,-2373.28987202,0.00013219,2]
[353637835,1739976631672,-201.0725,0.00013233,2]
[353637836,1739976631681,-5010.827,0.00013233,2]
[353637837,1739976631690,-2948.7,0.00013237,2]
[353637838,1739976631700,-1807.52,0.00013237,2]
[353637839,1739976631710,-2315.73,0.00013237,2]
[353637840,1739976631723,-1560.41,0.00013237,2]
[353637841,1739976631732,-1348.27,0.00013237,2]
[353637842,1739976631742,-2253.36,0.00013237,2]
[353637843,1739976631751,-3355.55,0.00013237,2]
[353637844,1739976631760,-2615.47,0.00013237,2]
[353637845,1739976631771,-500.0,0.00013237,2]
[353637846,1739976631781,-2537.93,0.00013237,2]
[353637847,1739976631790,-1067.4,0.00013237,2]
[353637848,1739976631799,-568.19,0.00013237,2]
[353637849,1739976631809,-3263.64,0.00013237,2]
[353637850,1739976631818,-1414.75,0.00013237,2]
[353637851,1739976631827,-4127.29,0.00013237,2]
[353637852,1739976631837,-500.0,0.00013237,2]
[353637853,1739976631846,-2652.31,0.00013237,2]
[353637854,1739976631856,-1268.84,0.00013237,2]
[353637855,1739976631865,-2472.28,0.00013237,2]
[353637856,1739976631875,-2819.26,0.00013237,2]
[353637857,1739976631884,-1421.26878603,0.00013237,2]
[353637858,1739976631895,-271.000002,0.00013237,2]
[353637859,1739976631907,-1648.41121197,0.00013237,2]
[353637860,1739976631916,-936.18878803,0.00013237,2]
[353637861,1739976631947,-585.17802667,0.00013237,2]
[353637862,1739976631959,-1624.1131853,0.00013237,2]
[353637863,1739976631969,-1793.60290837,0.00013237,2]
[353637864,1739976635768,-203.30709163,0.00013237,2]
[353637866,1739976635777,-337.7517506,0.00013237,2]
[353637869,1739976635789,-255.8482494,0.00013237,2]
[353637871,1739976635799,-500.0,0.00013237,2]
[353637873,1739976635809,-631.75828216,0.00013237,2]
[353637875,1739976635821,-1259.84171784,0.00013237,2]
[353637877,1739976635831,-500.0,0.00013237,2]
[353637879,1739976635840,-900.0902555,0.00013237,2]
[353637881,1739976635851,-139.9797445,0.00013237,2]
[353637883,1739976635861,-451.8467565,0.00013237,2]
[353638068,1739976637483,-618.6932435,0.00013237,2]
[353638069,1739976637493,-500.0,0.00013237,2]
[353638070,1739976637502,-500.0,0.00013237,2]
[353638071,1739976637513,-1111.54,0.00013237,2]
[353638072,1739976637522,-500.0,0.00013237,2]
[353638073,1739976637531,-2832.69,0.00013237,2]
[353638074,1739976637540,-500.0,0.00013237,2]
[353638075,1739976637549,-5122.1428964,0.00013238,2]
[353638085,1739976637682,-462.30471539,0.00013238,2]
[353638089,1739976637767,-22406.40808821,0.00013238,2]
[353638091,1739976637776,-76735.83138246,0.00013238,2]
[353638093,1739976637786,-5493.83483568,0.0001324,2]
[353638095,1739976637795,-12098.8665,0.00013252,2]
[353638097,1739976637804,-397.2509,0.00013252,2]
[353638099,1739976637814,-2373.28987197,0.00013258,2]
[353638101,1739976637823,-1099.66895685,0.00013268,2]
[353638103,1739976637833,-4000.0,0.00013269,2]
[353638105,1739976637842,-497.29,0.00013269,2]
[353638107,1739976637852,-497.72,0.00013269,2]
[353638109,1739976637862,-496.69,0.00013269,2]
[353638111,1739976637871,-509.91,0.00013269,2]
[353638113,1739976637880,-493.06,0.00013269,2]
[353638115,1739976637890,-733.9430986,0.00013271,2]
[353638117,1739976637899,-5493.83483568,0.00013291,2]
[353638119,1739976637910,-2373.28987197,0.00013297,2]
[353638121,1739976637919,-5000.0,0.00013298,2]
[353638123,1739976637928,-2322.5407,0.00013299,2]
[353638125,1739976637937,-7614.889,0.00013299,2]
[353638127,1739976637947,-775.98,0.000133,2]
[353638129,1739976637957,-440.22,0.000133,2]
[353638131,1739976637966,-986.97,0.000133,2]
[353638133,1739976637976,-986.97,0.000133,2]
[353638135,1739976637985,-440.22,0.000133,2]
[353638137,1739976637995,-775.98,0.000133,2]
[353638139,1739976638004,-866.11,0.000133,2]
[353638141,1739976638016,-986.97,0.000133,2]
[353638143,1739976638025,-986.97,0.000133,2]
[353638145,1739976638035,-439922.93672079,0.00013306,2]
[353638148,1739976638051,-13672.74986787,0.00013306,2]
[353638150,1739976638063,-790.6,0.00013306,2]
[353638287,1739976639564,-504.38,0.00013138,2]
[353638290,1739976639578,-193.61008605,0.00013306,2]
[353638366,1739976640191,-15719.6015,0.00013306,2]
[353638370,1739976640221,-5345.96539232,0.00013306,2]
[353638386,1739976640363,-89713.68117463,0.00013306,2]
[353638388,1739976640373,-1644.4037,0.00013315,2]
[353638390,1739976640382,-2948.7,0.00013319,2]
[353638392,1739976640391,-1807.52,0.00013319,2]
[353638394,1739976640400,-2315.73,0.00013319,2]
[353638396,1739976640410,-1560.41,0.00013319,2]
[353638398,1739976640419,-1348.27,0.00013319,2]
[353638400,1739976640428,-2253.36,0.00013319,2]
[353638402,1739976640438,-3355.55,0.00013319,2]
[353638404,1739976640447,-2615.47,0.00013319,2]
[353638406,1739976640457,-500.0,0.00013319,2]
[353638408,1739976640466,-2537.93,0.00013319,2]
[353638410,1739976640476,-1067.4,0.00013319,2]
[353638412,1739976640485,-568.19,0.00013319,2]
[353638414,1739976640495,-3263.64,0.00013319,2]
[353638416,1739976640505,-1414.75,0.00013319,2]
[353638418,1739976640519,-4127.29,0.00013319,2]
[353638420,1739976640529,-500.0,0.00013319,2]
[353638422,1739976640538,-2652.31,0.00013319,2]
[353638424,1739976640548,-1268.84,0.00013319,2]
[353638426,1739976640558,-2472.28,0.00013319,2]
[353638428,1739976640568,-2819.26,0.00013319,2]
[353638430,1739976640582,-3340.68,0.00013319,2]
[353638432,1739976640592,-3145.48,0.00013319,2]
[353638434,1739976640602,-1996.91,0.00013319,2]
[353638436,1739976640613,-544.71189589,0.00013319,2]
[353638438,1739976640623,-593.6,0.00013319,2]
[353638440,1739976640632,-1891.6,0.00013319,2]
[353638442,1739976640641,-513.85109564,0.00013319,2]
[353638444,1739976640651,-1040.07,0.00013319,2]
[353638446,1739976640662,-1070.54,0.00013319,2]
[353638448,1739976640672,-500.0,0.00013319,2]
[353638477,1739976640928,-500.0,0.00013319,2]
[353638479,1739976640938,-1111.54,0.00013319,2]
[353638481,1739976640948,-500.0,0.00013319,2]
[353638483,1739976640958,-2832.69,0.00013319,2]
[353638485,1739976640967,-500.0,0.00013319,2]
[353638487,1739976640977,-500.0,0.00013332,2]
[353638489,1739976640987,-500.0,0.00013332,2]
[353638491,1739976640997,-500.0,0.00013332,2]
[353638493,1739976641007,-500.0,0.00013332,2]
[353638495,1739976641023,-500.0,0.00013332,2]
[353638497,1739976641033,-500.0,0.00013332,2]
[353638499,1739976641043,-637.45,0.00013332,2]
[353638501,1739976641054,-500.0,0.00013332,2]
[353638503,1739976641064,-514.15431907,0.00013332,2]
[353638505,1739976641073,-500.0,0.00013332,2]
[353638507,1739976641083,-500.0,0.00013332,2]
[353638509,1739976641092,-500.0,0.00013332,2]
[353638510,1739976641103,-500.0,0.00013332,2]
[353638512,1739976641112,-500.0,0.00013332,2]
[353638515,1739976641122,-500.0,0.00013332,2]
[353638516,1739976641132,-2934.37,0.00013332,2]
[353638518,1739976641143,-500.0,0.00013332,2]
[353638521,1739976641153,-500.0,0.00013332,2]
[353638522,1739976641162,-503.12081949,0.00013332,2]
[353638525,1739976641172,-500.0,0.00013332,2]
[353638527,1739976641181,-500.0,0.00013332,2]
[353638529,1739976641190,-500.0,0.00013332,2]
[353638530,1739976641200,-500.0,0.00013332,2]
[353638532,1739976641209,-500.0,0.00013332,2]
[353638535,1739976641219,-500.0,0.00013332,2]
[353638537,1739976641229,-500.0,0.00013332,2]
[353638539,1739976641238,-500.0,0.00013332,2]
[353638541,1739976641247,-500.0,0.00013332,2]
[353638543,1739976641257,-500.0,0.00013332,2]
[353638544,1739976641270,-500.0,0.00013332,2]
[353638547,1739976641280,-500.0,0.00013332,2]
[353638549,1739976641290,-500.0,0.00013332,2]
[353638551,1739976641299,-500.0,0.00013332,2]
[353638553,1739976641309,-500.0,0.00013332,2]
[353638554,1739976641319,-521.18,0.00013332,2]
[353638557,1739976641328,-500.0,0.00013332,2]
[353638559,1739976641337,-500.0,0.00013332,2]
[353638561,1739976641347,-500.0,0.00013332,2]
[353638563,1739976641356,-500.0,0.00013332,2]